[Event "56th Biel Festival Rapid 2023"]
[Site "Biel"]
[Date "2024.04.13"]
[Round "5.5"]
[White "Sukandar, Irine Kharisma"]
[Black "Huston, Gus"]
[Result "*"]
[WhiteElo "2358"]
[BlackElo "2341"]
[PlyCount "42"]
[EventDate "2023.07.16"]
[EventType "swiss"]
[EventCountry "SUI"]
[TimeControl "900+5"]

1. e4 {[%emt 0:00:05]} c5 {[%emt 0:00:02]} 2. Nf3 {[%emt 0:00:05]} d6 {[%emt 0:00:01]} 3. d4 {[%emt 0:00:11]} cxd4 {[%emt 0:00:02]} 4. Qxd4 {[%emt 0:00:03]} Nc6 {[%emt 0:00:01]} 5. Bb5 {[%emt 0:00:02]} Bd7 {[%emt 0:00:01]} 6. Bxc6 {[%emt 0:00:04]} Bxc6 {[%emt 0:00:02]} 7. c4 {[%emt 0:00:03]} Nf6 {[%emt 0:00:03]} 8. Nc3 {[%emt 0:00:11]} g6 {[%emt 0:00:02]} 9. O-O {[%emt 0:00:10]} Bg7 {[%emt 0:00:01]} 10. h3 {[%emt 0:00:10]} O-O {[%emt 0:00:03]} 11. Qe3 {[%emt 0:00:05]} a6 {[%emt 0:00:02]} 12. Rb1 {[%emt 0:00:27]} b5 {[%emt 0:00:05]} 13. Nd4 {[%emt 0:00:17]} Qb6 {[%emt 0:01:04]} 14. Nxc6 {[%emt 0:04:03]} Qxc6 {[%emt 0:00:01]} 15. cxb5 {[%emt 0:00:29]} axb5 {[%emt 0:00:02]} 16. a3 {[%emt 0:00:05]} Rfc8 {[%emt 0:01:18]} 17. Bd2 {[%emt 0:00:05]} Qc4 {[%emt 0:00:13]} 18. Rfc1 {[%emt 0:00:48]} Qb3 {[%emt 0:00:02]} 19. Qe2 {[%emt 0:00:15]} Rab8 {[%emt 0:00:20]} 20. e5 {[%emt 0:02:42]} dxe5 {[%emt 0:00:09]} 21. Qxe5 {[%emt 0:00:03]} e6 {[%emt 0:01:13]} *

[Event "56th Biel Festival Rapid 2023"]
[Site "Biel"]
[Date "2024.04.13"]
[Round "5.7"]
[White "Saraci, Nderim"]
[Black "Matta, Vinay Kumar"]
[Result "*"]
[WhiteElo "2472"]
[BlackElo "2111"]
[PlyCount "38"]
[EventDate "2023.07.16"]
[EventType "swiss"]
[EventCountry "SUI"]
[TimeControl "900+5"]

1. Nf3 {[%emt 0:00:07]} Nf6 {[%emt 0:00:03]} 2. b3 {[%emt 0:00:02]} g6 {[%emt 0:00:02]} 3. Bb2 {[%emt 0:00:01]} Bg7 {[%emt 0:00:02]} 4. e3 {[%emt 0:00:02]} O-O {[%emt 0:00:03]} 5. d4 {[%emt 0:00:01]} c5 {[%emt 0:00:15]} 6. dxc5 {[%emt 0:00:02]} Qa5+ {[%emt 0:00:09]} 7. c3 {[%emt 0:00:02]} Qxc5 {[%emt 0:00:53]} 8. Ba3 {[%emt 0:00:01]} Qa5 {[%emt 0:00:15]} 9. Bxe7 {[%emt 0:00:03]} Re8 {[%emt 0:00:01]} 10. b4 {[%emt 0:04:35]} Qh5 {[%emt 0:00:28]} 11. Bxf6 {[%emt 0:01:03]} Bxf6 {[%emt 0:00:03]} 12. Be2 {[%emt 0:00:37]} Nc6 {[%emt 0:00:27]} 13. O-O {[%emt 0:01:45]} Qh6 {[%emt 0:00:12]} 14. b5 {[%emt 0:01:08]} Ne7 {[%emt 0:00:13]} 15. Nd4 {[%emt 0:00:15]} Nd5 {[%emt 0:00:16]} 16. Bf3 {[%emt 0:00:06]} Nb6 {[%emt 0:00:14]} 17. Nd2 {[%emt 0:00:10]} d5 {[%emt 0:00:06]} 18. a4 {[%emt 0:00:16]} Be6 {[%emt 0:01:25]} 19. Rc1 {[%emt 0:00:44]} a5 {[%emt 0:00:20]} *

[Event "56th Biel Festival Rapid 2023"]
[Site "Biel"]
[Date "2024.04.13"]
[Round "5.8"]
[White "Akshit Kumar J"]
[Black "Schnepp, Gunnar"]
[Result "*"]
[WhiteElo "2105"]
[BlackElo "2278"]
[PlyCount "37"]
[EventDate "2023.07.16"]
[EventType "swiss"]
[EventCountry "SUI"]
[TimeControl "900+5"]

1. e4 {[%emt 0:00:03]} c5 {[%emt 0:00:01]} 2. Nf3 {[%emt 0:00:01]} d6 {[%emt 0:00:02]} 3. d4 {[%emt 0:00:01]} cxd4 {[%emt 0:00:01]} 4. Nxd4 {[%emt 0:00:02]} Nf6 {[%emt 0:00:01]} 5. Nc3 {[%emt 0:00:05]} a6 {[%emt 0:00:01]} 6. h3 {[%emt 0:00:01]} e6 {[%emt 0:00:08]} 7. g4 {[%emt 0:00:00]} b5 {[%emt 0:00:01]} 8. g5 {[%emt 0:00:27]} b4 {[%emt 0:00:02]} 9. gxf6 {[%emt 0:00:10]} bxc3 {[%emt 0:00:02]} 10. fxg7 {[%emt 0:00:03]} Bxg7 {[%emt 0:00:02]} 11. bxc3 {[%emt 0:00:01]} Qc7 {[%emt 0:00:36]} 12. Bd2 {[%emt 0:00:14]} Bb7 {[%emt 0:00:33]} 13. Bd3 {[%emt 0:00:02]} Nd7 {[%emt 0:00:38]} 14. Rg1 {[%emt 0:00:02]} Be5 {[%emt 0:01:18]} 15. Qh5 {[%emt 0:01:18]} Nc5 {[%emt 0:00:20]} 16. Qh4 {[%emt 0:01:27]} Qd8 {[%emt 0:04:08]} 17. Qxd8+ {[%emt 0:03:15]} Rxd8 {[%emt 0:00:02]} 18. f3 {[%emt 0:00:23]} Rc8 {[%emt 0:00:35]} 19. Rb1 {[%emt 0:00:20]} *

[Event "56th Biel Festival Rapid 2023"]
[Site "Biel"]
[Date "2024.04.13"]
[Round "5.9"]
[White "Harikrishnan.A.Ra"]
[Black "Meier, Peter"]
[Result "*"]
[WhiteElo "2406"]
[BlackElo "2033"]
[PlyCount "52"]
[EventDate "2023.07.16"]
[EventType "swiss"]
[EventCountry "SUI"]
[TimeControl "900+5"]

1. d4 {[%emt 0:00:03]} d5 {[%emt 0:00:01]} 2. Nf3 {[%emt 0:00:02]} Nf6 {[%emt 0:00:02]} 3. c3 {[%emt 0:00:02]} e6 {[%emt 0:00:27]} 4. Bf4 {[%emt 0:00:01]} Bd6 {[%emt 0:00:24]} 5. e3 {[%emt 0:00:02]} Bxf4 {[%emt 0:00:11]} 6. exf4 {[%emt 0:00:02]} O-O {[%emt 0:00:03]} 7. Bd3 {[%emt 0:00:01]} b6 {[%emt 0:00:13]} 8. O-O {[%emt 0:00:04]} Ba6 {[%emt 0:00:02]} 9. Ne5 {[%emt 0:00:02]} Bxd3 {[%emt 0:00:03]} 10. Qxd3 {[%emt 0:00:02]} c5 {[%emt 0:00:08]} 11. Nd2 {[%emt 0:00:11]} Qc7 {[%emt 0:00:15]} 12. Qe3 {[%emt 0:02:08]} cxd4 {[%emt 0:00:23]} 13. Qxd4 {[%emt 0:00:33]} Nc6 {[%emt 0:00:06]} 14. Nxc6 {[%emt 0:00:02]} Qxc6 {[%emt 0:00:02]} 15. Rfe1 {[%emt 0:00:02]} Rac8 {[%emt 0:00:29]} 16. a4 {[%emt 0:00:01]} Qc5 {[%emt 0:00:09]} 17. Nb3 {[%emt 0:00:11]} Qd6 {[%emt 0:00:29]} 18. Qe5 {[%emt 0:00:35]} Rfd8 {[%emt 0:00:42]} 19. Qxd6 {[%emt 0:00:51]} Rxd6 {[%emt 0:00:02]} 20. Nd4 {[%emt 0:00:13]} Ne4 {[%emt 0:00:48]} 21. f5 {[%emt 0:00:23]} Nc5 {[%emt 0:00:38]} 22. a5 {[%emt 0:00:17]} Nd3 {[%emt 0:00:11]} 23. Re2 {[%emt 0:00:07]} e5 {[%emt 0:00:05]} 24. Nb5 {[%emt 0:00:06]} Rd7 {[%emt 0:00:09]} 25. f3 {[%emt 0:01:12]} e4 {[%emt 0:00:11]} 26. Rxe4 {[%emt 0:00:53]} Nf4 {[%emt 0:00:25]} *

[Event "56th Biel Festival Rapid 2023"]
[Site "Biel"]
[Date "2024.04.13"]
[Round "5.10"]
[White "Zargarov, Mikayel"]
[Black "Habibi, Ali"]
[Result "*"]
[WhiteElo "1951"]
[BlackElo "2171"]
[PlyCount "44"]
[EventDate "2023.07.16"]
[EventType "swiss"]
[EventCountry "SUI"]
[TimeControl "900+5"]

1. d4 {[%emt 0:00:04]} Nf6 {[%emt 0:00:02]} 2. c4 {[%emt 0:00:01]} c5 {[%emt 0:00:02]} 3. d5 {[%emt 0:00:01]} b5 {[%emt 0:00:02]} 4. cxb5 {[%emt 0:00:05]} a6 {[%emt 0:00:02]} 5. bxa6 {[%emt 0:00:02]} Bxa6 {[%emt 0:00:01]} 6. Nc3 {[%emt 0:00:02]} d6 {[%emt 0:00:03]} 7. Nf3 {[%emt 0:00:04]} Nbd7 {[%emt 0:00:03]} 8. e4 {[%emt 0:00:32]} Bxf1 {[%emt 0:00:03]} 9. Kxf1 {[%emt 0:00:03]} g6 {[%emt 0:00:01]} 10. g3 {[%emt 0:00:10]} Bg7 {[%emt 0:00:02]} 11. Kg2 {[%emt 0:00:10]} O-O {[%emt 0:00:04]} 12. a4 {[%emt 0:01:05]} Qc7 {[%emt 0:00:03]} 13. Qe2 {[%emt 0:00:56]} Rfb8 {[%emt 0:00:05]} 14. Nb5 {[%emt 0:00:38]} Qb7 {[%emt 0:00:05]} 15. Bd2 {[%emt 0:02:48]} Nb6 {[%emt 0:00:20]} 16. b3 {[%emt 0:00:30]} Nc8 {[%emt 0:01:28]} 17. Rab1 {[%emt 0:01:28]} Na7 {[%emt 0:00:03]} 18. Na3 {[%emt 0:00:04]} Nd7 {[%emt 0:00:27]} 19. Nc4 {[%emt 0:00:54]} Nb6 {[%emt 0:00:23]} 20. Na5 {[%emt 0:01:11]} Qd7 {[%emt 0:00:08]} 21. h4 {[%emt 0:00:17]} e6 {[%emt 0:00:23]} 22. dxe6 {[%emt 0:01:17]} Qxe6 {[%emt 0:00:02]} *

[Event "56th Biel Festival Rapid 2023"]
[Site "Biel"]
[Date "2024.04.13"]
[Round "5.11"]
[White "Haimovich, Tal"]
[Black "Rasovic, Dragan"]
[Result "*"]
[WhiteElo "2374"]
[BlackElo "2069"]
[PlyCount "29"]
[EventDate "2023.07.16"]
[EventType "swiss"]
[EventCountry "SUI"]
[TimeControl "900+5"]

1. e4 {[%emt 0:00:03]} c6 {[%emt 0:00:02]} 2. Nc3 {[%emt 0:00:03]} d5 {[%emt 0:00:01]} 3. Nf3 {[%emt 0:00:01]} dxe4 {[%emt 0:00:01]} 4. Nxe4 {[%emt 0:00:02]} Nd7 {[%emt 0:00:05]} 5. d4 {[%emt 0:00:11]} Ngf6 {[%emt 0:00:00]} 6. Ng3 {[%emt 0:00:15]} e6 {[%emt 0:00:00]} 7. Bd3 {[%emt 0:00:11]} c5 {[%emt 0:00:03]} 8. O-O {[%emt 0:00:24]} cxd4 {[%emt 0:00:46]} 9. Nxd4 {[%emt 0:00:03]} Be7 {[%emt 0:00:06]} 10. Re1 {[%emt 0:00:23]} O-O {[%emt 0:00:00]} 11. c3 {[%emt 0:00:16]} a6 {[%emt 0:01:34]} 12. Bc2 {[%emt 0:03:20]} Re8 {[%emt 0:00:14]} 13. Bf4 {[%emt 0:02:02]} Bf8 {[%emt 0:01:50]} 14. Bg5 {[%emt 0:01:51]} h6 {[%emt 0:00:52]} 15. Be3 {[%emt 0:00:24]} *

[Event "56th Biel Festival Rapid 2023"]
[Site "Biel"]
[Date "2024.04.13"]
[Round "5.19"]
[White "Erne, Raphael"]
[Black "Rait Albert"]
[Result "*"]
[WhiteElo "2077"]
[BlackElo "1899"]
[PlyCount "27"]
[EventDate "2023.07.16"]
[EventType "swiss"]
[EventCountry "SUI"]
[TimeControl "900+5"]

1. c4 {[%emt 0:00:03]} e5 {[%emt 0:00:02]} 2. g3 {[%emt 0:00:02]} c6 {[%emt 0:00:04]} 3. Nf3 {[%emt 0:00:02]} e4 {[%emt 0:00:04]} 4. Nd4 {[%emt 0:00:02]} d5 {[%emt 0:00:04]} 5. cxd5 {[%emt 0:00:01]} Qxd5 {[%emt 0:00:02]} 6. Nc2 {[%emt 0:00:02]} Nf6 {[%emt 0:00:21]} 7. Nc3 {[%emt 0:00:03]} Qh5 {[%emt 0:00:09]} 8. Ne3 {[%emt 0:00:21]} Bb4 {[%emt 0:00:59]} 9. Qc2 {[%emt 0:01:04]} Bxc3 {[%emt 0:00:28]} 10. dxc3 {[%emt 0:00:27]} O-O {[%emt 0:00:17]} 11. Bg2 {[%emt 0:00:31]} Re8 {[%emt 0:00:10]} 12. O-O {[%emt 0:00:38]} Bh3 {[%emt 0:00:21]} 13. b3 {[%emt 0:03:19]} Nbd7 {[%emt 0:00:28]} 14. Rd1 {[%emt 0:03:17]} *

[Event "56th Biel Festival Rapid 2023"]
[Site "Biel"]
[Date "2024.04.13"]
[Round "5.20"]
[White "Kocharin, Timur"]
[Black "Olarte, Stefan"]
[Result "*"]
[WhiteElo "2225"]
[BlackElo "1879"]
[PlyCount "73"]
[EventDate "2023.07.16"]
[EventType "swiss"]
[EventCountry "SUI"]
[TimeControl "900+5"]

1. e4 {[%emt 0:00:03]} g6 {[%emt 0:00:01]} 2. d4 {[%emt 0:00:05]} Bg7 {[%emt 0:00:01]} 3. Nc3 {[%emt 0:00:02]} Nc6 {[%emt 0:00:04]} 4. d5 {[%emt 0:00:16]} Nb8 {[%emt 0:00:03]} 5. Nf3 {[%emt 0:00:05]} d6 {[%emt 0:00:06]} 6. Be2 {[%emt 0:00:06]} c6 {[%emt 0:00:20]} 7. O-O {[%emt 0:00:04]} cxd5 {[%emt 0:00:03]} 8. Nxd5 {[%emt 0:00:09]} e6 {[%emt 0:00:16]} 9. Nc3 {[%emt 0:00:06]} a6 {[%emt 0:00:08]} 10. Bf4 {[%emt 0:00:05]} e5 {[%emt 0:00:12]} 11. Bg5 {[%emt 0:00:01]} f6 {[%emt 0:00:01]} 12. Be3 {[%emt 0:00:02]} Be6 {[%emt 0:00:20]} 13. Nd5 {[%emt 0:00:04]} Nd7 {[%emt 0:00:02]} 14. c4 {[%emt 0:00:06]} Ne7 {[%emt 0:00:12]} 15. b4 {[%emt 0:00:14]} Bxd5 {[%emt 0:00:29]} 16. cxd5 {[%emt 0:00:03]} O-O {[%emt 0:00:25]} 17. Rc1 {[%emt 0:00:18]} h6 {[%emt 0:00:15]} 18. Qd2 {[%emt 0:00:06]} Kh7 {[%emt 0:00:02]} 19. Ne1 {[%emt 0:00:33]} f5 {[%emt 0:00:17]} 20. f3 {[%emt 0:00:23]} f4 {[%emt 0:00:05]} 21. Bf2 {[%emt 0:00:02]} g5 {[%emt 0:00:02]} 22. Nd3 {[%emt 0:00:52]} h5 {[%emt 0:00:33]} 23. Rc2 {[%emt 0:00:08]} Rc8 {[%emt 0:01:51]} 24. Rfc1 {[%emt 0:00:02]} Kg6 {[%emt 0:00:38]} 25. Rxc8 {[%emt 0:00:15]} Nxc8 {[%emt 0:00:02]} 26. Qc3 {[%emt 0:00:03]} b6 {[%emt 0:00:57]} 27. Qc7 {[%emt 0:00:05]} Bf6 {[%emt 0:00:26]} 28. Nb2 {[%emt 0:00:10]} b5 {[%emt 0:00:02]} 29. Qxd8 {[%emt 0:00:04]} Rxd8 {[%emt 0:00:02]} 30. Rc6 {[%emt 0:00:02]} Nb8 {[%emt 0:00:05]} 31. Rc7 {[%emt 0:00:07]} Be7 {[%emt 0:00:38]} 32. a4 {[%emt 0:00:13]} bxa4 {[%emt 0:00:12]} 33. Nxa4 {[%emt 0:00:01]} Kf6 {[%emt 0:00:01]} 34. Kf1 {[%emt 0:00:06]} Kf7 {[%emt 0:00:23]} 35. Ke1 {[%emt 0:00:02]} Ke8 {[%emt 0:00:02]} 36. Kd2 {[%emt 0:00:02]} Bf6 {[%emt 0:00:14]} 37. Nb2 {[%emt 0:00:19]} *

[Event "56th Biel Festival Rapid 2023"]
[Site "Biel"]
[Date "2024.04.13"]
[Round "5.21"]
[White "Chobaut, Nicolas"]
[Black "Dergatschova, Anna"]
[Result "*"]
[WhiteElo "1919"]
[BlackElo "2120"]
[PlyCount "29"]
[EventDate "2023.07.16"]
[EventType "swiss"]
[EventCountry "SUI"]
[TimeControl "900+5"]

1. c4 {[%emt 0:00:07]} Nc6 {[%emt 0:00:11]} 2. g3 {[%emt 0:00:14]} e5 {[%emt 0:00:05]} 3. Bg2 {[%emt 0:00:03]} Nf6 {[%emt 0:00:06]} 4. Nf3 {[%emt 0:00:32]} Bc5 {[%emt 0:00:20]} 5. O-O {[%emt 0:00:11]} O-O {[%emt 0:00:04]} 6. Nxe5 {[%emt 0:01:28]} Bxf2+ {[%emt 0:00:17]} 7. Rxf2 {[%emt 0:00:02]} Nxe5 {[%emt 0:00:05]} 8. d3 {[%emt 0:00:45]} h6 {[%emt 0:00:09]} 9. Nc3 {[%emt 0:00:39]} c6 {[%emt 0:00:02]} 10. Bf4 {[%emt 0:03:11]} Neg4 {[%emt 0:00:40]} 11. Rf1 {[%emt 0:00:06]} Qb6+ {[%emt 0:00:08]} 12. d4 {[%emt 0:00:26]} Qxb2 {[%emt 0:00:09]} 13. Qd3 {[%emt 0:00:05]} b5 {[%emt 0:01:19]} 14. h3 {[%emt 0:01:01]} Re8 {[%emt 0:00:22]} 15. cxb5 {[%emt 0:01:28]} *

[Event "56th Biel Festival Rapid 2023"]
[Site "Biel"]
[Date "2024.04.13"]
[Round "5.22"]
[White "Materia, Matteo"]
[Black "Schweizer, Simon"]
[Result "*"]
[WhiteElo "1780"]
[BlackElo "2123"]
[PlyCount "46"]
[EventDate "2023.07.16"]
[EventType "swiss"]
[EventCountry "SUI"]
[TimeControl "900+5"]

1. e4 {[%emt 0:00:03]} e5 {[%emt 0:00:01]} 2. Nf3 {[%emt 0:00:02]} Nc6 {[%emt 0:00:02]} 3. Nc3 {[%emt 0:00:02]} Nf6 {[%emt 0:00:02]} 4. d4 {[%emt 0:00:03]} exd4 {[%emt 0:00:02]} 5. Nxd4 {[%emt 0:00:01]} Bb4 {[%emt 0:00:01]} 6. Nxc6 {[%emt 0:00:04]} bxc6 {[%emt 0:00:02]} 7. Bd3 {[%emt 0:00:02]} O-O {[%emt 0:00:02]} 8. O-O {[%emt 0:00:02]} d5 {[%emt 0:00:01]} 9. exd5 {[%emt 0:00:02]} cxd5 {[%emt 0:00:02]} 10. h3 {[%emt 0:00:04]} c6 {[%emt 0:00:01]} 11. Qf3 {[%emt 0:00:05]} Re8 {[%emt 0:00:02]} 12. Bf4 {[%emt 0:00:41]} Qe7 {[%emt 0:00:09]} 13. Rfe1 {[%emt 0:00:36]} Be6 {[%emt 0:00:36]} 14. a3 {[%emt 0:00:35]} Bd6 {[%emt 0:00:06]} 15. Rad1 {[%emt 0:01:22]} a5 {[%emt 0:00:06]} 16. Ne2 {[%emt 0:01:16]} Rab8 {[%emt 0:00:04]} 17. Nd4 {[%emt 0:00:31]} Qc7 {[%emt 0:00:09]} 18. Bxd6 {[%emt 0:01:43]} Qxd6 {[%emt 0:00:03]} 19. b3 {[%emt 0:00:06]} Bd7 {[%emt 0:00:12]} 20. a4 {[%emt 0:00:17]} Re5 {[%emt 0:00:24]} 21. Rxe5 {[%emt 0:02:30]} Qxe5 {[%emt 0:00:03]} 22. Qe2 {[%emt 0:00:38]} Qc7 {[%emt 0:00:30]} 23. Re1 {[%emt 0:00:25]} g6 {[%emt 0:01:27]} *

[Event "56th Biel Festival Rapid 2023"]
[Site "Biel"]
[Date "2024.04.13"]
[Round "5.23"]
[White "Toenz, Arthur"]
[Black "Ragios, Konstantinos"]
[Result "*"]
[WhiteElo "2040"]
[BlackElo "1925"]
[PlyCount "31"]
[EventDate "2023.07.16"]
[EventType "swiss"]
[EventCountry "SUI"]
[TimeControl "900+5"]

1. d4 {[%emt 0:00:03]} e6 {[%emt 0:00:02]} 2. Bf4 {[%emt 0:00:02]} Nf6 {[%emt 0:00:04]} 3. e3 {[%emt 0:00:02]} b6 {[%emt 0:00:23]} 4. Qf3 {[%emt 0:00:02]} Nc6 {[%emt 0:00:19]} 5. Nc3 {[%emt 0:00:03]} Bb7 {[%emt 0:00:12]} 6. O-O-O {[%emt 0:00:05]} a6 {[%emt 0:01:07]} 7. e4 {[%emt 0:00:17]} Ne7 {[%emt 0:00:23]} 8. g4 {[%emt 0:01:12]} Ng6 {[%emt 0:00:38]} 9. h4 {[%emt 0:02:23]} Nxf4 {[%emt 0:02:59]} 10. Qxf4 {[%emt 0:00:02]} Bb4 {[%emt 0:00:54]} 11. Nge2 {[%emt 0:00:16]} Bd6 {[%emt 0:01:15]} 12. Qf3 {[%emt 0:00:23]} e5 {[%emt 0:00:02]} 13. g5 {[%emt 0:00:39]} Ng8 {[%emt 0:00:48]} 14. d5 {[%emt 0:00:15]} Qe7 {[%emt 0:00:21]} 15. Ng3 {[%emt 0:00:30]} g6 {[%emt 0:00:05]} 16. Kb1 {[%emt 0:00:24]} *

[Event "56th Biel Festival Rapid 2023"]
[Site "Biel"]
[Date "2024.04.13"]
[Round "5.24"]
[White "Vincenti, Leonardo"]
[Black "Dorand, Jean-Pierre"]
[Result "*"]
[WhiteElo "2117"]
[BlackElo "1885"]
[PlyCount "51"]
[EventDate "2023.07.16"]
[EventType "swiss"]
[EventCountry "SUI"]
[TimeControl "900+5"]

1. e4 {[%emt 0:00:01]} c6 {[%emt 0:00:02]} 2. d4 {[%emt 0:00:01]} d5 {[%emt 0:00:03]} 3. exd5 {[%emt 0:00:02]} cxd5 {[%emt 0:00:03]} 4. Bd3 {[%emt 0:00:02]} Nc6 {[%emt 0:00:01]} 5. c3 {[%emt 0:00:01]} Qc7 {[%emt 0:00:03]} 6. h3 {[%emt 0:00:14]} Nf6 {[%emt 0:00:10]} 7. Nf3 {[%emt 0:00:05]} g6 {[%emt 0:00:07]} 8. O-O {[%emt 0:00:08]} Bg7 {[%emt 0:00:06]} 9. Re1 {[%emt 0:00:10]} O-O {[%emt 0:00:01]} 10. Nbd2 {[%emt 0:00:27]} Bf5 {[%emt 0:00:16]} 11. Bxf5 {[%emt 0:00:20]} gxf5 {[%emt 0:00:02]} 12. Ne5 {[%emt 0:00:07]} e6 {[%emt 0:00:09]} 13. Ndf3 {[%emt 0:00:11]} Ne4 {[%emt 0:00:18]} 14. Bf4 {[%emt 0:00:03]} Qb6 {[%emt 0:00:43]} 15. Nd7 {[%emt 0:00:13]} Qxb2 {[%emt 0:00:07]} 16. Nxf8 {[%emt 0:00:10]} Rxf8 {[%emt 0:00:02]} 17. Qc1 {[%emt 0:00:30]} Qxc3 {[%emt 0:00:18]} 18. Qxc3 {[%emt 0:02:37]} Nxc3 {[%emt 0:00:03]} 19. Be3 {[%emt 0:00:02]} Re8 {[%emt 0:02:06]} 20. Kf1 {[%emt 0:00:27]} h6 {[%emt 0:00:33]} 21. Rec1 {[%emt 0:00:39]} Nb5 {[%emt 0:01:04]} 22. Rab1 {[%emt 0:00:17]} Nbxd4 {[%emt 0:00:05]} 23. Nxd4 {[%emt 0:00:03]} Nxd4 {[%emt 0:00:10]} 24. Rxb7 {[%emt 0:00:02]} f4 {[%emt 0:01:43]} 25. Bxf4 {[%emt 0:00:37]} e5 {[%emt 0:00:03]} 26. Be3 {[%emt 0:00:29]} *

[Event "56th Biel Festival Rapid 2023"]
[Site "Biel"]
[Date "2024.04.13"]
[Round "5.25"]
[White "Lang, Fabian"]
[Black "Rohrer, Christophe"]
[Result "*"]
[WhiteElo "1914"]
[BlackElo "2312"]
[PlyCount "40"]
[EventDate "2023.07.16"]
[EventType "swiss"]
[EventCountry "SUI"]
[TimeControl "900+5"]

1. d4 {[%emt 0:00:04]} Nf6 {[%emt 0:00:03]} 2. Nf3 {[%emt 0:00:05]} d5 {[%emt 0:00:01]} 3. e3 {[%emt 0:00:01]} e6 {[%emt 0:00:05]} 4. Bd3 {[%emt 0:00:00]} b6 {[%emt 0:00:09]} 5. Nbd2 {[%emt 0:00:12]} Bb7 {[%emt 0:00:02]} 6. Qe2 {[%emt 0:00:26]} Be7 {[%emt 0:00:28]} 7. O-O {[%emt 0:00:05]} O-O {[%emt 0:00:03]} 8. e4 {[%emt 0:00:14]} dxe4 {[%emt 0:00:23]} 9. Nxe4 {[%emt 0:00:02]} Nbd7 {[%emt 0:00:06]} 10. c3 {[%emt 0:00:13]} h6 {[%emt 0:00:05]} 11. Bf4 {[%emt 0:00:58]} Nd5 {[%emt 0:00:19]} 12. Bg3 {[%emt 0:00:16]} Re8 {[%emt 0:02:16]} 13. h3 {[%emt 0:00:41]} N7f6 {[%emt 0:00:48]} 14. a4 {[%emt 0:00:21]} a6 {[%emt 0:00:09]} 15. Rfe1 {[%emt 0:00:13]} Nh5 {[%emt 0:00:20]} 16. Ne5 {[%emt 0:00:44]} Nxg3 {[%emt 0:00:08]} 17. fxg3 {[%emt 0:00:12]} Nf6 {[%emt 0:01:37]} 18. Rad1 {[%emt 0:00:36]} Nxe4 {[%emt 0:01:28]} 19. Bxe4 {[%emt 0:00:02]} Bxe4 {[%emt 0:00:07]} 20. Qxe4 {[%emt 0:00:02]} Qd5 {[%emt 0:01:07]} *

[Event "56th Biel Festival Rapid 2023"]
[Site "Biel"]
[Date "2024.04.13"]
[Round "5.26"]
[White "Pheng, Wissam"]
[Black "Zenker, Ulrich"]
[Result "*"]
[WhiteElo "1940"]
[BlackElo "2156"]
[PlyCount "27"]
[EventDate "2023.07.16"]
[EventType "swiss"]
[EventCountry "SUI"]
[TimeControl "900+5"]

1. e4 {[%emt 0:00:03]} e6 {[%emt 0:00:03]} 2. b3 {[%emt 0:00:01]} d5 {[%emt 0:00:06]} 3. Bb2 {[%emt 0:00:02]} Nf6 {[%emt 0:00:36]} 4. e5 {[%emt 0:00:01]} Nfd7 {[%emt 0:00:08]} 5. f4 {[%emt 0:00:11]} c5 {[%emt 0:00:03]} 6. Qg4 {[%emt 0:00:02]} Nc6 {[%emt 0:00:15]} 7. Nf3 {[%emt 0:00:02]} Nb6 {[%emt 0:02:09]} 8. Bb5 {[%emt 0:01:31]} Bd7 {[%emt 0:00:29]} 9. a4 {[%emt 0:01:00]} Nb4 {[%emt 0:02:23]} 10. Na3 {[%emt 0:00:38]} Bxb5 {[%emt 0:01:21]} 11. axb5 {[%emt 0:00:04]} Qd7 {[%emt 0:00:30]} 12. O-O {[%emt 0:00:30]} O-O-O {[%emt 0:00:53]} 13. d3 {[%emt 0:01:37]} h6 {[%emt 0:00:23]} 14. Rfd1 {[%emt 0:01:21]} *

[Event "56th Biel Festival Rapid 2023"]
[Site "Biel"]
[Date "2024.04.13"]
[Round "5.31"]
[White "Piazza, Carlo"]
[Black "Kleinert, Juergen"]
[Result "*"]
[WhiteElo "2106"]
[BlackElo "1802"]
[PlyCount "31"]
[EventDate "2023.07.16"]
[EventType "swiss"]
[EventCountry "SUI"]
[TimeControl "900+5"]

1. e4 {[%emt 0:00:00]} e5 {[%emt 0:00:03]} 2. Nf3 {[%emt 0:00:01]} d5 {[%emt 0:00:05]} 3. Nxe5 {[%emt 0:00:03]} Bd6 {[%emt 0:00:00]} 4. d4 {[%emt 0:00:05]} dxe4 {[%emt 0:00:00]} 5. Nc4 {[%emt 0:00:01]} Be7 {[%emt 0:00:03]} 6. Nc3 {[%emt 0:00:06]} Nf6 {[%emt 0:00:00]} 7. Bg5 {[%emt 0:00:13]} Bf5 {[%emt 0:00:00]} 8. Qd2 {[%emt 0:00:28]} O-O {[%emt 0:00:15]} 9. h3 {[%emt 0:00:17]} h6 {[%emt 0:00:04]} 10. Be3 {[%emt 0:00:20]} Nd5 {[%emt 0:00:26]} 11. Nxd5 {[%emt 0:00:39]} Qxd5 {[%emt 0:00:02]} 12. g4 {[%emt 0:00:10]} Bh7 {[%emt 0:00:15]} 13. Na5 {[%emt 0:02:42]} Nc6 {[%emt 0:05:17]} 14. Nxc6 {[%emt 0:01:12]} Qxc6 {[%emt 0:00:47]} 15. O-O-O {[%emt 0:00:24]} b5 {[%emt 0:00:29]} 16. Qa5 {[%emt 0:01:08]} *

[Event "56th Biel Festival Rapid 2023"]
[Site "Biel"]
[Date "2024.04.13"]
[Round "5.32"]
[White "Alic, Miran"]
[Black "Ranieri, Pierpaolo"]
[Result "*"]
[WhiteElo "2011"]
[BlackElo "1753"]
[PlyCount "37"]
[EventDate "2023.07.16"]
[EventType "swiss"]
[EventCountry "SUI"]
[TimeControl "900+5"]

1. d4 {[%emt 0:00:02]} d5 {[%emt 0:00:02]} 2. Nf3 {[%emt 0:00:02]} Nf6 {[%emt 0:00:02]} 3. g3 {[%emt 0:00:05]} c6 {[%emt 0:00:07]} 4. Bg2 {[%emt 0:00:00]} Bf5 {[%emt 0:00:04]} 5. c4 {[%emt 0:00:00]} e6 {[%emt 0:00:03]} 6. Nc3 {[%emt 0:00:02]} h6 {[%emt 0:00:13]} 7. Qb3 {[%emt 0:00:02]} Qb6 {[%emt 0:00:19]} 8. c5 {[%emt 0:00:02]} Qxb3 {[%emt 0:00:10]} 9. axb3 {[%emt 0:00:03]} Na6 {[%emt 0:00:10]} 10. Ra4 {[%emt 0:00:02]} Bc2 {[%emt 0:00:11]} 11. O-O {[%emt 0:00:04]} Bxb3 {[%emt 0:00:03]} 12. Ra3 {[%emt 0:00:02]} Bc2 {[%emt 0:00:11]} 13. Ne5 {[%emt 0:00:51]} Nc7 {[%emt 0:00:46]} 14. Bf4 {[%emt 0:01:30]} g5 {[%emt 0:02:03]} 15. Nxf7 {[%emt 0:02:33]} gxf4 {[%emt 0:00:08]} 16. Nxh8 {[%emt 0:00:02]} Bg7 {[%emt 0:00:20]} 17. gxf4 {[%emt 0:00:15]} Bxh8 {[%emt 0:00:15]} 18. Rc1 {[%emt 0:03:56]} Bf5 {[%emt 0:00:41]} 19. b4 {[%emt 0:00:21]} *